[Event "ChessKid Cup Div-III 2023"]
[Site "Online"]
[Date "2023.05.22"]
[Round "1.1"]
[White "Gledura, Benjamin"]
[Black "Paravyan, David"]
[Result "1-0"]
[ECO "C42"]
[WhiteElo "2644"]
[BlackElo "2601"]
[Annotator "TA"]
[PlyCount "113"]
[EventDate "2023.05.21"]
[EventType "k.o."]
[EventCountry "NET"]
[SourceTitle "playchess.com"]
[Source "ChessBase"]
[SourceQuality "1"]
[TimeControl "900+3"]

{[%evp 9,113,17,6,15,17,16,14,12,8,20,25,27,34,40,38,31,39,20,29,20,20,17,10,0,0,0,2,-8,0,0,0,0,0,0,0,0,41,24,41,0,0,0,78,32,64,69,114,77,68,70,124,118,126,127,131,120,126,113,147,143,177,175,174,139,175,175,175,175,168,168,131,70,70,70,303,295,397,356,352,343,457,454,1190,1116,12122,12797,12850,29941,12792,12845,7108,6693,5019,4973,29981,29982,29982,29983,29983,29984,29984,29985,29985,29986,29986,29987]} 1. e4 {[%emt 0:00:05]} e5 {[%emt 0:00:24]} 2. Nf3 {[%emt 0:00:04]} Nf6 {[%emt 0:00:07]} 3. Nxe5 {[%emt 0:00:03]} d6 {[%emt 0:00:02]} 4. Nd3 {[%emt 0:00:03]} Nxe4 {[%emt 0:00:02]} 5. Qe2 {[%emt 0:00:01]} Qe7 {[%emt 0:00:02]} 6. Nf4 {[%emt 0:00:04] C42: Petroff Defence: 3 Nxe5 and unusual White 3rd moves.} Nf6 {[%emt 0:00:05] Inhibits Nd5. 6...Nc6 is more advanced technology.} 7. d4 {[%emt 0:00:08]} Qxe2+ {[%emt 0:00:05]} 8. Bxe2 {[%emt 0:00:02] The position is equal.} Nc6 {[%emt 0:00:15]} 9. c3 {[%emt 0:00:04]} Bf5 {[%emt 0:00:25] [#]} 10. Nd2 $146 {[%emt 0:00:10][%cal Bb1d2,Bd2e4,Be4g3,Bg3f1,Bf1e3][%mdl 32]} ({Predecessor:} 10. Be3 O-O-O 11. h3 g5 12. Bd3 Ne7 13. Bxf5+ Nxf5 14. Nd3 Re8 15. Kd2 Ne4+ 16. Kc2 {0-1 Harshad,S (2218)-Paravyan,D (2592) Titled Tuesday intern op 30th Aug Late blitz 2022 (2)}) 10... g5 {[%emt 0:02:21]} 11. Nh5 {[%emt 0:01:41]} Nxh5 {[%emt 0:00:17]} 12. Bxh5 {[%emt 0:00:00]} Bg6 {[%emt 0:00:49]} 13. Bxg6 {[%emt 0:02:01]} fxg6 {[%emt 0:00:00]} 14. Ne4 {[%emt 0:00:31]} h6 {[%emt 0:00:03]} 15. Ke2 {[%emt 0:00:34]} Kf7 {[%emt 0:02:50]} 16. Kd3 {[%emt 0:00:04]} d5 {[%emt 0:00:42]} 17. Ng3 {[%emt 0:01:01]} Bd6 {[%emt 0:03:25]} 18. Nf1 {[%emt 0:00:03]} Ne7 {[%emt 0:00:12]} 19. Ne3 {[%emt 0:00:07]} c6 {[%emt 0:00:05]} 20. Bd2 {[%emt 0:01:41]} Nf5 {[%emt 0:00:11]} 21. Rae1 {[%emt 0:00:10]} Rae8 {[%emt 0:00:23]} 22. b3 {[%emt 0:01:04]} b5 {[%emt 0:01:04]} 23. g3 {[%emt 0:01:41]} (23. Nxf5 {simplifies} gxf5 24. Ra1 a6 25. a4) 23... a6 {[%emt 0:00:30]} 24. c4 {[%emt 0:00:34]} dxc4+ {[%emt 0:01:11]} 25. bxc4 {[%emt 0:00:00]} Ba3 {[%emt 0:00:07]} (25... Rd8 $11) 26. h4 {[%emt 0:01:15]} ({White should try} 26. Bc3 $16) 26... Nxe3 {[%emt 0:00:30]} 27. fxe3 {[%emt 0:00:13]} Bd6 {[%emt 0:00:11]} 28. cxb5 {[%emt 0:01:07]} (28. hxg5 {with more complications.} hxg5 29. Ref1+ Ke6 30. e4) 28... axb5 {[%emt 0:00:05]} 29. Rc1 {[%emt 0:00:02]} Bxg3 {[%emt 0:00:03]} (29... c5 $14) 30. hxg5 $16 {[%emt 0:00:02]} (30. Rxc6 gxh4 31. Rf1+ Kg8) 30... hxg5 {[%emt 0:00:04]} 31. Rhf1+ {[%emt 0:00:07]} Kg7 {[%emt 0:00:00]} 32. Rxc6 {[%emt 0:00:01]} Rhf8 {[%emt 0:00:05]} 33. Rg1 {[%emt 0:00:07]} Rf3 {[%emt 0:00:01]} 34. d5 $1 {[%emt 0:00:54]} Bf4 {[%emt 0:00:01][%cal Rf4e3]} 35. Re6 {[%emt 0:00:06]} Rxe6 {[%emt 0:00:07]} 36. dxe6 $18 {[%emt 0:00:01][%mdl 4096] Endgame Ke4 would be deadly. KRB-KRB} Kf6 {[%emt 0:00:04]} 37. Ke4 {[%emt 0:00:05][%csl LRf3,LRf4]} Rf2 {[%emt 0:00:00]} 38. Bc3+ {[%emt 0:00:03]} (38. exf4 Rxd2 39. Rxg5 (39. fxg5+ Kxe6 40. Rb1 Re2+ 41. Kf4 Rf2+ 42. Kg4 Rg2+ 43. Kf4 Rf2+ 44. Kg4 Rg2+ 45. Kf4 Rf2+ $11) 39... Re2+ 40. Kf3 Rxa2 $11) 38... Kxe6 {[%emt 0:00:01]} 39. exf4 {[%emt 0:00:02]} Rxf4+ {[%emt 0:00:04] [#] KRB-KR} 40. Ke3 {[%emt 0:00:05]} ({White should play} 40. Kd3 $1 $16) 40... Ra4 $1 $14 {[%emt 0:00:05] Prevents a3.} 41. Rg2 {[%emt 0:00:04] aiming for Rb2.} Kf5 $2 {[%emt 0:00:01] A mistake that costs the game.} (41... Ra3 $14) 42. Rb2 $18 {[%emt 0:00:09]} Kg4 {[%emt 0:00:05]} 43. Bb4 {[%emt 0:00:04]} ({Not} 43. Rxb5 Rxa2 44. Be5 Kh3 $14) 43... Kh3 {[%emt 0:00:01]} 44. a3 {[%emt 0:00:15]} g4 {[%emt 0:00:03]} 45. Kf4 {[%emt 0:00:28]} g3 {[%emt 0:00:06] [#]} (45... Ra7 $142 46. Rb3+ Kh4 47. Be1+ {[%mdl 64] Discovered Attack} g3 48. Bxg3+ (48. Rxg3 Rf7+ 49. Ke3 Re7+ 50. Kd2 Rxe1 $11) 48... Kh5) 46. Rb3 $1 {[%emt 0:00:02]} g5+ {[%emt 0:00:01]} 47. Kxg5 {[%emt 0:00:01]} Ra7 {[%emt 0:00:05]} 48. Bd6 {[%emt 0:00:02][%csl LRb5,LRg3]} Rg7+ {[%emt 0:00:01]} 49. Kf6 {[%emt 0:00:02]} Rg4 {[%emt 0:00:03]} 50. Ke6 {[%emt 0:00:02][%cal Ob3g3] Rxg3+! would kill now.} Kh4 {[%emt 0:00:04] [#]} 51. Bxg3+ $1 {[%emt 0:00:12][%mdl 512]} Rxg3 {[%emt 0:00:00]} (51... Kh5 52. Rxb5+) 52. Rxg3 {[%emt 0:00:00] White mates.} Kxg3 {[%emt 0:00:00] KP-KP} 53. Kd6 {[%emt 0:00:01]} Kf4 {[%emt 0:00:01]} 54. Kc6 {[%emt 0:00:01]} Ke5 {[%emt 0:00:00]} 55. Kxb5 {[%emt 0:00:00]} Kd6 {[%emt 0:00:00]} 56. Kb6 {[%emt 0:00:01]} Kd7 {[%emt 0:00:01]} 57. Kb7 {[%emt 0:00:01] Weighted Error Value: White=0.06 (flawless) /Black=0.35} 1-0

[Event "ChessKid Cup Div-III 2023"]
[Site "Online"]
[Date "2023.05.22"]
[Round "1.1"]
[White "Tari, Aryan"]
[Black "Terry, Renato"]
[Result "1-0"]
[ECO "B12"]
[WhiteElo "2642"]
[BlackElo "2520"]
[Annotator "TA"]
[PlyCount "97"]
[EventDate "2023.05.21"]
[EventType "k.o."]
[EventCountry "NET"]
[SourceTitle "playchess.com"]
[Source "ChessBase"]
[SourceQuality "1"]
[TimeControl "900+3"]

{[%evp 9,97,15,8,17,3,11,0,19,37,11,26,13,12,20,22,27,8,18,16,-8,-14,-6,0,-7,0,0,0,0,0,0,0,0,0,0,0,0,50,11,32,8,55,6,33,29,55,0,8,0,0,0,0,0,0,-31,-43,-76,-65,-102,-27,-29,0,0,4,9,8,8,64,64,68,72,72,72,82,53,63,77,223,182,341,187,641,641,641,621,626,598,29956,29955,5073,1555]} 1. e4 {[%emt 0:00:17]} c6 {[%emt 0:00:23]} 2. d4 {[%emt 0:00:52]} d5 {[%emt 0:00:02]} 3. e5 {[%emt 0:00:08]} c5 {[%emt 0:00:03]} 4. Nf3 {[%emt 0:00:01]} cxd4 {[%emt 0:00:08]} 5. Nxd4 {[%emt 0:00:02]} Nc6 {[%emt 0:00:23]} 6. Nxc6 {[%emt 0:00:02] B12: Caro-Kann: Advance Variation.} bxc6 {[%emt 0:00:01] Black is weak on the dark squares} 7. Bd3 {[%emt 0:00:01]} e6 {[%emt 0:00:24]} 8. O-O {[%emt 0:00:02] The position is equal.} a5 {[%emt 0:00:09]} 9. Qe2 {[%emt 0:00:09]} Ne7 {[%emt 0:00:19]} 10. Nd2 {[%emt 0:00:03]} Qb6 {[%emt 0:01:09]} 11. Nf3 {[%emt 0:00:32]} Ba6 {[%emt 0:00:13]} 12. Be3 {[%emt 0:04:08]} Qb7 {[%emt 0:00:45] [#]} 13. Rfc1 $146 {[%emt 0:01:09]} ({Predecessor:} 13. c4 Ng6 14. h4 Be7 15. h5 Nf8 16. h6 gxh6 17. Bxh6 Nd7 18. cxd5 cxd5 19. Rac1 {1-0 Esipenko,A (2675)-Naroditsky,D (2622) Titled Tuesday intern op 17th Jan Early blitz 2023 (9)}) 13... Nf5 {[%emt 0:00:32]} 14. c4 {[%emt 0:00:03]} Nxe3 {[%emt 0:01:18]} 15. Qxe3 {[%emt 0:00:02]} Be7 {[%emt 0:00:04]} (15... Qxb2 $2 16. cxd5 Bxd3 17. Qxd3 $18) 16. cxd5 {[%emt 0:00:31][%mdl 64] Discovered Attack} cxd5 {[%emt 0:00:05]} 17. Bxa6 {[%emt 0:00:48]} Rxa6 {[%emt 0:00:10]} 18. Rc2 {[%emt 0:00:03]} O-O {[%emt 0:01:25]} 19. Rac1 {[%emt 0:00:06]} Bd8 {[%emt 0:00:01] Wards off Rc7} 20. Nd4 {[%emt 0:01:13]} a4 {[%emt 0:02:36]} 21. Nc6 {[%emt 0:00:33]} Bb6 {[%emt 0:00:09]} 22. Qa3 {[%emt 0:00:14] Strongly threatening Ne7+.} g6 {[%emt 0:00:20]} (22... Raa8 $11) 23. h4 {[%emt 0:00:23][%cal Oh4h5]} h5 {[%emt 0:02:03]} 24. Qf3 {[%emt 0:00:05] With the idea Qf6.} Qd7 {[%emt 0:00:54]} (24... Kh7 $11 {might be stronger.}) 25. Qf6 {[%emt 0:02:11]} (25. g4 $14) 25... Bd8 {[%emt 0:01:15]} 26. Qf4 {[%emt 0:00:02] Hoping for Nb8.} Ra8 {[%emt 0:00:30] Repels Nb8} 27. Nxd8 {[%emt 0:00:22]} (27. g4 $14) 27... Raxd8 {[%emt 0:00:29]} 28. Rc7 {[%emt 0:00:04]} Qb5 {[%emt 0:00:02]} 29. g4 {[%emt 0:01:25]} Qe2 {[%emt 0:00:01]} 30. gxh5 {[%emt 0:00:07]} (30. Qxa4 $2 d4 31. Qd1 d3 $17) 30... Qxh5 {[%emt 0:00:02]} 31. Qf6 {[%emt 0:00:07]} Rb8 {[%emt 0:00:25]} 32. f3 {[%emt 0:00:16] Against Qg4+} Qh6 {[%emt 0:00:06]} (32... Rxb2 $2 33. Rxf7 Qh6 34. Rxf8+ Qxf8 35. Qxg6+ Kh8 36. Qh5+ (36. Qxe6 Qg7+ 37. Qg4 Rxa2 $14) (36. Rc7 Qg8 $11) 36... Kg8 37. Rc7 $18) 33. f4 {[%emt 0:00:16] [#]} Qh5 {[%emt 0:00:07]} ({Of course not} 33... Rxb2 $6 34. Rxf7 Rxf7 35. Rc8+ Rf8 36. Qxe6+ Kh7 37. Qe7+ Qg7 38. Qxf8 $11) (33... d4 $1 $17 {Threatens to win with ...d3.} 34. R7c2 d3) 34. R1c2 $11 {[%emt 0:00:06]} Qf3 {[%emt 0:00:08][%cal Ob8b7]} (34... a3 $5 35. b3 $8 Rb4 $15) 35. Rg2 {[%emt 0:00:08][%cal Og2g6] White threatens Rxg6+! and mate. Some like it hot} Qd1+ {[%emt 0:00:03]} 36. Kh2 {[%emt 0:00:01][%cal Og2g6] White wants to mate with Rxg6+!} Qh5 {[%emt 0:00:00] Dodges Rxg6+} (36... Qb1 $2 37. Rcc2 Rb7 38. f5 $18) 37. Ra7 $40 {[%emt 0:00:14][%mdl 128] White has some attack.} Rb4 {[%emt 0:00:07] [#]} ({Black should try} 37... Ra8 $11 38. Rc7 Rac8) 38. Rxf7 $1 $14 {[%emt 0:00:06][%mdl 64] Remove Defender. White is much more active.} Rxf7 {[%emt 0:00:01]} 39. Rxg6+ {[%emt 0:00:01]} (39. Qxe6 Kg7 40. Qg4 Qxg4 41. Rxg4 Rfxf4 $19) 39... Qxg6 {[%emt 0:00:01]} 40. Qxg6+ {[%emt 0:00:00][%mdl 4096] Endgame KQ-KRR} Kf8 {[%emt 0:00:00]} 41. Qh6+ {[%emt 0:00:05]} Ke7 {[%emt 0:00:04]} 42. Kg3 {[%emt 0:00:05] And now h5 would win.} Rxb2 {[%emt 0:00:07] A mistake that costs the game.} (42... Kd7 $16) 43. Qg5+ $18 {[%emt 0:00:01]} Kd7 $2 {[%emt 0:00:01]} (43... Kf8 {keeps fighting.} 44. Qd8+ Kg7) 44. Qg8 {[%emt 0:00:02]} (44. Qg6 $142 Rf8 45. Qg7+ Ke8 46. Qc7 Rg8+ 47. Kf3) 44... Re7 {[%emt 0:00:04] [#]} (44... Ke7) 45. f5 $1 {[%emt 0:00:04][%mdl 576] Deflection} exf5 {[%emt 0:00:05]} 46. Qxd5+ {[%emt 0:00:00]} Ke8 {[%emt 0:00:00]} 47. Qc6+ {[%emt 0:00:05]} Kf7 {[%emt 0:00:07]} 48. Qf6+ {[%emt 0:00:01]} ({Less strong is} 48. Qxa4 Rxe5 49. Qd7+ Kg8 $16) 48... Ke8 {[%emt 0:00:01]} 49. e6 {[%emt 0:00:01] Weighted Error Value: White=0.16 (very precise) /Black=0.45} (49. Qh8+ $142 Kf7 50. e6+ {[%mdl 64] Discovered Attack} Rxe6 51. Qxb2) 1-0

[Event "ChessKid Cup Div-III 2023"]
[Site "Online"]
[Date "2023.05.22"]
[Round "1.1"]
[White "Iturrizaga Bonelli, Eduardo"]
[Black "Harikrishna, Pentala"]
[Result "0-1"]
[ECO "D47"]
[WhiteElo "2637"]
[BlackElo "2704"]
[Annotator "TA"]
[PlyCount "76"]
[EventDate "2023.05.21"]
[EventType "k.o."]
[EventCountry "NET"]
[SourceTitle "playchess.com"]
[Source "ChessBase"]
[SourceQuality "1"]
[TimeControl "900+3"]

{[%evp 19,76,-6,-11,-19,-3,-13,-6,-13,-7,-21,-33,-29,-18,-17,-18,-21,0,0,0,0,0,0,17,24,0,-18,-31,-77,-61,-100,-114,-96,-86,-102,-88,-241,0,-195,-170,-155,-135,-309,-297,-395,-338,-397,-383,-396,-379,-438,-419,-575,-550,-1071,-1065,-1056,-992,-1472,-1380]} 1. Nf3 {[%emt 0:00:06]} Nf6 {[%emt 0:00:06]} 2. c4 {[%emt 0:00:01]} e6 {[%emt 0:00:04]} 3. Nc3 {[%emt 0:00:18]} d5 {[%emt 0:00:07]} 4. e3 {[%emt 0:00:01]} a6 {[%emt 0:00:03]} 5. d4 {[%emt 0:00:52]} dxc4 {[%emt 0:00:58]} 6. Bxc4 {[%emt 0:00:00]} b5 {[%emt 0:00:02]} 7. Be2 {[%emt 0:00:31]} Bb7 {[%emt 0:00:10]} 8. O-O {[%emt 0:00:01]} Nbd7 {[%emt 0:00:35]} 9. a4 {[%emt 0:00:13]} b4 {[%emt 0:00:04]} 10. Nb1 {[%emt 0:00:01]} c5 {[%emt 0:00:06]} 11. Nbd2 {[%emt 0:00:02] D47: Semi-Slav: Meran System.} Be7 {[%emt 0:00:14]} 12. b3 {[%emt 0:00:38]} O-O {[%emt 0:00:16]} 13. Bb2 {[%emt 0:00:01] The position is equal.} Rc8 {[%emt 0:00:37]} 14. Nc4 {[%emt 0:00:11]} cxd4 {[%emt 0:01:09]} 15. Nxd4 {[%emt 0:00:08]} Nc5 {[%emt 0:00:06]} 16. Rc1 {[%emt 0:00:08]} Qc7 {[%emt 0:01:19] [#]} ({But not} 16... Qd5 17. Bf3 Qd8 18. Bxb7 Nxb7 19. Qf3 $14) 17. a5 $146 {[%emt 0:01:56]} ({Predecessor:} 17. Bf3 Rfd8 18. Bxb7 Qxb7 19. Qe2 Nd5 20. Na5 Qb6 21. Nc4 Qb8 22. Na5 Qb6 23. Nc4 Qb8 24. Na5 Qb6 25. Nc4 {½-½ Bacrot,E (2613)-Serper,G (2574) Cap d'Agde KO rapid 2000 (1.6)}) 17... Nd5 {[%emt 0:01:27]} (17... Rfd8 {is interesting.} 18. Nb6 Rb8 19. Qc2 Nfd7) 18. Bf3 {[%emt 0:00:47]} Rfd8 {[%emt 0:00:55][%cal Bf8d8,Bd8d5,Bd5g5,Bg5g6][%mdl 32]} 19. Qe2 {[%emt 0:01:25]} Qb8 {[%emt 0:01:28]} 20. Bxd5 {[%emt 0:00:50]} Rxd5 {[%emt 0:00:15]} (20... exd5 $2 21. Nf5 (21. Nb6 g6 $18) 21... dxc4 22. Nxe7+ Kf8 23. Nxc8 $18) 21. Nb6 $1 {[%emt 0:03:46][%csl LRc8,LRd5]} Rg5 $1 {[%emt 0:00:05]} 22. g3 {[%emt 0:02:01] Strongly threatening f4.} Re8 {[%emt 0:01:34]} 23. f4 {[%emt 0:00:16]} (23. Rfd1 $15 {was preferrable.}) 23... Rg6 $17 {[%emt 0:00:04]} 24. Na4 {[%emt 0:01:09]} Nxa4 {[%emt 0:00:20]} 25. bxa4 {[%emt 0:00:00]} e5 {[%emt 0:00:02]} 26. Nf5 {[%emt 0:00:40]} exf4 {[%emt 0:00:13]} 27. Rxf4 {[%emt 0:00:14] [#]} (27. Qc4 $17) 27... Bf8 $2 {[%emt 0:00:02] A strong pair of Bishops.} ({Better is} 27... Bg5 $1 $19 {[%cal Rg5f4]} 28. Rf2 (28. Rxb4 $2 {too greedy.} Bxe3+ 29. Nxe3 Rxg3+ {[%mdl 64] Demolition} 30. hxg3 Qxg3+ 31. Kf1 Rxe3 $19) 28... Ba8) 28. Qf2 {[%emt 0:00:04]} (28. Qc4 $11 {and White has nothing to worry.} Ree6 29. Qc7 Qxc7 30. Rxc7) 28... Rc8 $19 {[%emt 0:00:57]} 29. Rf1 {[%emt 0:00:03][%cal Ob2g7]} f6 $36 {[%emt 0:00:47][%cal Bf7f6,Bf6f5][%mdl 2080] Black is really pushing.} 30. h4 $2 {[%emt 0:00:01]} (30. Qe2 $17) 30... b3 {[%emt 0:00:14] White must now prevent ...Rc2.} 31. Nd4 {[%emt 0:00:06] Inhibits Rc2.} Bd6 {[%emt 0:00:17] aiming for ...Be5.} 32. Kh2 {[%emt 0:00:05]} Bxf4 {[%emt 0:00:07]} 33. exf4 {[%emt 0:00:00] [#]} f5 $1 {[%emt 0:00:11]} 34. Re1 {[%emt 0:00:02]} (34. Qe3 Bd5) 34... Be4 {[%emt 0:00:02]} 35. Re2 {[%emt 0:00:05]} Rd6 {[%emt 0:00:11] Black is clearly winning.} 36. g4 {[%emt 0:00:00] [#]} Rxd4 $1 {[%emt 0:00:30][%mdl 512]} 37. Bxd4 {[%emt 0:00:03] White is weak on the light squares} Rc2 {[%emt 0:00:01]} 38. Kg3 {[%emt 0:00:06] [#]} b2 $1 {[%emt 0:00:08][%mdl 512] Weighted Error Value: White=0.82/Black=0.15 (very precise)} 0-1

[Event "ChessKid Cup Div-III 2023"]
[Site "Online"]
[Date "2023.05.22"]
[Round "1.1"]
[White "Lysyj, Igor"]
[Black "Santos Ruiz, Miguel"]
[Result "1/2-1/2"]
[ECO "E11"]
[WhiteElo "2606"]
[BlackElo "2590"]
[Annotator "TA"]
[PlyCount "115"]
[EventDate "2023.05.21"]
[EventType "k.o."]
[EventCountry "NET"]
[SourceTitle "playchess.com"]
[Source "ChessBase"]
[SourceQuality "1"]
[TimeControl "900+3"]

{[%evp 17,115,3,0,22,0,0,27,0,25,20,36,-26,-39,-31,-25,-40,-13,-13,-13,-8,-10,-7,-2,-162,-119,-150,16,0,28,23,49,49,38,20,77,58,185,166,187,137,125,58,121,121,121,121,121,121,121,121,121,121,106,19,19,0,0,0,0,-7,-7,-7,-7,-7,-7,-7,-7,-7,0,-7,0,0,0,-7,0,0,0,0,0,0,0,0,0,0,0,0,0,0,0,0,0,0,0,0,0,0,0,0,0,0]} 1. d4 {[%emt 0:00:05]} Nf6 {[%emt 0:00:05]} 2. c4 {[%emt 0:00:02]} e6 {[%emt 0:00:00]} 3. Nf3 {[%emt 0:00:01]} d5 {[%emt 0:00:01]} 4. g3 {[%emt 0:00:02]} Bb4+ {[%emt 0:00:01]} 5. Bd2 {[%emt 0:00:02]} Be7 {[%emt 0:00:00]} 6. Bg2 {[%emt 0:00:02]} Nbd7 {[%emt 0:00:03]} 7. O-O {[%emt 0:00:02]} c6 {[%emt 0:00:01]} 8. Qc2 {[%emt 0:00:06]} O-O {[%emt 0:00:01]} 9. a3 {[%emt 0:00:04]} a5 {[%emt 0:00:02]} 10. Bf4 {[%emt 0:00:03] E11: Bogo-Indian.} h6 {[%emt 0:00:32] [#]} 11. h4 $146 {[%emt 0:00:09]} ({Predecessor:} 11. Rd1 b6 12. Ne5 Bb7 13. cxd5 cxd5 14. Nc6 Bxc6 15. Qxc6 Rc8 16. Qb5 Ne4 17. Nd2 g5 18. Nxe4 gxf4 {0-1 Iskusnyh,S (2440)-Aditya,M (2505) ChessKid Cup Play In blitz 2023 (4)}) 11... a4 {[%emt 0:01:33]} 12. Nbd2 {[%emt 0:00:52] White has an edge.} Nh5 {[%emt 0:00:16]} 13. e3 $1 {[%emt 0:00:01]} f5 {[%emt 0:00:50]} 14. Ne5 {[%emt 0:00:48]} (14. Qd1 $14) 14... Nxf4 $11 {[%emt 0:00:33]} 15. exf4 {[%emt 0:00:03]} Nxe5 {[%emt 0:00:01]} 16. dxe5 {[%emt 0:00:04]} b5 {[%emt 0:00:14]} 17. c5 {[%emt 0:00:45]} Qa5 {[%emt 0:00:04]} 18. Nf3 {[%emt 0:01:02]} b4 {[%emt 0:00:25]} 19. Rfc1 {[%emt 0:00:03]} Bd7 {[%emt 0:00:04]} 20. Nd4 $2 {[%emt 0:00:08]} (20. axb4 $11 {and White has nothing to worry.} Qxb4 21. Ne1) 20... bxa3 {[%emt 0:00:35]} 21. bxa3 {[%emt 0:00:26]} Rab8 {[%emt 0:00:02]} (21... Qc7 $1 $17 {...Ra5 would be deadly.} 22. Rab1 Ra5) 22. Bf3 {[%emt 0:02:15]} Rb7 {[%emt 0:00:25]} 23. Kg2 {[%emt 0:01:40]} Kh8 {[%emt 0:02:17]} 24. h5 {[%emt 0:00:16]} Rfb8 {[%emt 0:00:29]} 25. Ra2 {[%emt 0:00:23] Prevents Rb2} Rf8 {[%emt 0:00:28]} (25... Qd8 $11) 26. Bd1 $16 {[%emt 0:00:19]} Ra7 {[%emt 0:01:51]} ({Better is} 26... Qa8 $14) 27. Rb2 $1 $18 {[%emt 0:00:07]} Qc7 {[%emt 0:00:01]} 28. Qd2 {[%emt 0:02:04]} (28. Rcb1 $18) 28... Ra5 {[%emt 0:00:53]} 29. Qb4 {[%emt 0:00:28]} (29. Rcb1 $1 $16 {Strongly threatening Rb7.} Ra7 30. Qc3) 29... Qa7 {[%emt 0:00:14]} ({Black should try} 29... Rfa8 $14) 30. Qb7 $16 {[%emt 0:00:01] White has more active pieces.} Bxc5 {[%emt 0:01:19]} 31. Qxa7 {[%emt 0:01:31]} ({But not} 31. Nxc6 $6 Qxb7 32. Rxb7 Bxc6 $11) 31... Bxa7 {[%emt 0:00:03]} 32. Nxc6 {[%emt 0:00:01]} Rc5 {[%emt 0:00:04] [#]} 33. Rxc5 {[%emt 0:01:07]} Bxc5 {[%emt 0:00:00]} 34. Bxa4 {[%emt 0:00:01]} Ra8 {[%emt 0:00:28] [#]} 35. Rb7 {[%emt 0:00:22]} (35. Bb5 $1 $16) 35... Bc8 $1 $11 {[%emt 0:00:33] The position is equal.} 36. Rb8 {[%emt 0:00:02]} Rxb8 {[%emt 0:00:04]} 37. Nxb8 {[%emt 0:00:01]} Bxa3 {[%emt 0:00:12]} 38. Bd7 {[%emt 0:00:14]} Bxd7 {[%emt 0:00:03]} 39. Nxd7 {[%emt 0:00:01][%mdl 4096] Endgame KB-KN} Kg8 {[%emt 0:00:01]} 40. Nb8 {[%emt 0:00:08]} Kf7 {[%emt 0:00:15]} 41. Nc6 {[%emt 0:00:02]} Bc5 {[%emt 0:00:04]} 42. Kf3 {[%emt 0:00:14]} Ke8 {[%emt 0:00:02]} 43. Na5 {[%emt 0:00:05]} Kd7 {[%emt 0:00:02]} 44. Ke2 {[%emt 0:00:03]} Bb6 {[%emt 0:00:04]} 45. Nb3 {[%emt 0:00:02]} Kc6 {[%emt 0:00:01]} 46. f3 {[%emt 0:00:01]} Kb5 {[%emt 0:00:03]} 47. Kd3 $1 {[%emt 0:00:01]} Kb4 {[%emt 0:00:06]} 48. Nd4 {[%emt 0:00:04]} Bxd4 {[%emt 0:00:11]} 49. Kxd4 {[%emt 0:00:01] KP-KP} Kb5 {[%emt 0:00:11]} 50. g4 {[%emt 0:00:02] Intending gxf5 and mate.} Kc6 $1 {[%emt 0:00:28]} 51. Kc3 {[%emt 0:00:09] White wants to mate with gxf5.} Kc5 {[%emt 0:00:09]} 52. Kd3 {[%emt 0:00:04]} d4 {[%emt 0:00:13]} (52... fxg4 $2 53. fxg4 Kc6 54. f5 exf5 55. gxf5 $18) 53. gxf5 $1 {[%emt 0:00:03]} exf5 {[%emt 0:00:01]} 54. Kc2 {[%emt 0:00:01]} Kc6 {[%emt 0:00:05]} 55. Kd2 {[%emt 0:00:03]} Kc5 {[%emt 0:00:04]} 56. Kc2 $1 {[%emt 0:00:03]} Kc6 {[%emt 0:00:11]} 57. Kd2 $1 {[%emt 0:00:02]} Kc5 {[%emt 0:00:16]} 58. Kc2 {[%emt 0:00:01] What a bad dream for Black.   Weighted Error Value: White=0.15 (very precise) /Black=0.15 (very precise)} 1/2-1/2